[Event "Early-Titled-Tuesday-Blitz-November-28-2023"]
[Site "Chess.com"]
[Date "2023.11.28"]
[Round "8"]
[White "Ziyamammadov"]
[Black "zeitnotakrobat"]
[Result "0-1"]
[WhiteElo "1901"]
[BlackElo "2398"]
[TimeControl "180+1"]
[EndTime "9:35:32 PST"]
[Termination "zeitnotakrobat won by resignation"]

1. e4 {[%clk 0:03:00.9]} 1... c5 {[%clk 0:02:43.8]} 2. Nf3 {[%clk 0:03:00.2]}
2... e6 {[%clk 0:02:43.7]} 3. d4 {[%clk 0:03:00.1]} 3... cxd4 {[%clk 0:02:43.6]}
4. Nxd4 {[%clk 0:03:01]} 4... a6 {[%clk 0:02:43.9]} 5. Nc3 {[%clk 0:02:59.9]}
5... Qc7 {[%clk 0:02:43.8]} 6. f3 {[%clk 0:02:59.4]} 6... Nf6 {[%clk 0:02:42.2]}
7. Be3 {[%clk 0:02:58.8]} 7... b5 {[%clk 0:02:38.1]} 8. Qd2 {[%clk 0:02:52.2]}
8... Bb7 {[%clk 0:02:36.2]} 9. O-O-O {[%clk 0:02:51.6]} 9... Bb4 {[%clk
0:02:27.3]} 10. a3 {[%clk 0:02:46.4]} 10... Be7 {[%clk 0:02:24.8]} 11. Bf4
{[%clk 0:02:31.7]} 11... e5 {[%clk 0:02:22.3]} 12. Bg3 {[%clk 0:02:31.8]} 12...
O-O {[%clk 0:02:06.9]} 13. Nf5 {[%clk 0:02:30.2]} 13... Bd8 {[%clk 0:01:55.1]}
14. h4 {[%clk 0:02:17.6]} 14... g6 {[%clk 0:01:45.5]} 15. Nh6+ {[%clk
0:02:05.1]} 15... Kg7 {[%clk 0:01:45.4]} 16. Ng4 {[%clk 0:02:04.9]} 16... Nxg4
{[%clk 0:01:27.1]} 17. fxg4 {[%clk 0:02:05.8]} 17... Be7 {[%clk 0:01:18.8]} 18.
Nd5 {[%clk 0:01:53.5]} 18... Bxd5 {[%clk 0:01:10.6]} 19. Qxd5 {[%clk 0:01:52.2]}
19... Nc6 {[%clk 0:01:08.7]} 20. Qxd7 {[%clk 0:01:30.3]} 20... Rac8 {[%clk
0:01:02.1]} 21. Qxc7 {[%clk 0:01:26.1]} 21... Rxc7 {[%clk 0:01:01.8]} 22. h5
{[%clk 0:01:25.5]} 22... f6 {[%clk 0:00:58]} 23. hxg6 {[%clk 0:01:24]} 23...
hxg6 {[%clk 0:00:57.8]} 24. Be2 {[%clk 0:01:22.2]} 24... Nd4 {[%clk 0:00:57]}
25. Bd3 {[%clk 0:01:18.8]} 25... Rfc8 {[%clk 0:00:53.2]} 26. c3 {[%clk 0:01:15]}
26... b4 {[%clk 0:00:50]} 27. axb4 {[%clk 0:01:10.5]} 27... Bxb4 {[%clk
0:00:48.1]} 28. Kb1 {[%clk 0:01:06.1]} 28... Bxc3 {[%clk 0:00:43.4]} 29. Bc2
{[%clk 0:00:17.9]} 29... Nxc2 {[%clk 0:00:36.3]} 30. Kxc2 {[%clk 0:00:16.8]}
30... Be1+ {[%clk 0:00:35.5]} 31. Kb1 {[%clk 0:00:15.7]} 31... Bxg3 {[%clk
0:00:35.5]} 32. Rhf1 {[%clk 0:00:16.3]} 32... Bf4 {[%clk 0:00:35.4]} 33. Rf3
{[%clk 0:00:16.4]} 33... Rc1+ {[%clk 0:00:34.5]} 34. Rxc1 {[%clk 0:00:16.1]}
34... Rxc1+ {[%clk 0:00:34.4]} 35. Ka2 {[%clk 0:00:15.6]} 35... Rc4 {[%clk
0:00:34.1]} 36. g3 {[%clk 0:00:15.3]} 36... Bg5 {[%clk 0:00:32.3]} 37. Rd3
{[%clk 0:00:15.2]} 37... Rxe4 {[%clk 0:00:32.2]} 38. Rd7+ {[%clk 0:00:15.4]}
38... Kh6 {[%clk 0:00:31.6]} 39. Ra7 {[%clk 0:00:15.1]} 39... Rxg4 {[%clk
0:00:30.8]} 40. Rxa6 {[%clk 0:00:15.6]} 40... Rxg3 {[%clk 0:00:31]} 41. b4
{[%clk 0:00:14.9]} 41... f5 {[%clk 0:00:27.1]} 42. b5 {[%clk 0:00:14.9]} 42...
Be3 {[%clk 0:00:27]} 43. Kb3 {[%clk 0:00:14.1]} 43... Bd4+ {[%clk 0:00:26.1]}
44. Kc4 {[%clk 0:00:15]} 44... Rc3+ {[%clk 0:00:25.6]} 45. Kd5 {[%clk
0:00:15.1]} 45... Kg5 {[%clk 0:00:24.7]} 46. b6 {[%clk 0:00:13.9]} 46... Bxb6
{[%clk 0:00:23.6]} 47. Rxb6 {[%clk 0:00:13.2]} 47... e4 {[%clk 0:00:24.1]} 48.
Kd4 {[%clk 0:00:12.6]} 48... Rd3+ {[%clk 0:00:23.8]} 49. Kc4 {[%clk 0:00:12.7]}
49... Rd1 {[%clk 0:00:22.6]} 50. Rb2 {[%clk 0:00:11.6]} 50... f4 {[%clk
0:00:21.1]} 51. Rb5+ {[%clk 0:00:11.3]} 51... Kg4 {[%clk 0:00:21.1]} 52. Rb6
{[%clk 0:00:11.4]} 52... g5 {[%clk 0:00:21.1]} 53. Rb2 {[%clk 0:00:12]} 53... e3
{[%clk 0:00:20.8]} 54. Rg2+ {[%clk 0:00:12.4]} 54... Kf5 {[%clk 0:00:21.2]} 55.
Re2 {[%clk 0:00:11.3]} 55... g4 {[%clk 0:00:19.9]} 56. Rb2 {[%clk 0:00:10.9]}
56... Ke4 {[%clk 0:00:19.8]} 57. Rb7 {[%clk 0:00:08.8]} 57... Rc1+ {[%clk
0:00:19.8]} 0-1

[Event "Early-Titled-Tuesday-Blitz-November-28-2023"]
[Site "Chess.com"]
[Date "2023.11.28"]
[Round "8"]
[White "esrosenberg"]
[Black "KNVB"]
[Result "0-1"]
[WhiteElo "2386"]
[BlackElo "2702"]
[TimeControl "180+1"]
[EndTime "9:35:36 PST"]
[Termination "KNVB won on time"]

1. d4 {[%clk 0:03:00.9]} 1... e5 {[%clk 0:02:59.1]} 2. dxe5 {[%clk 0:02:59.8]}
2... Nc6 {[%clk 0:02:58.4]} 3. Nf3 {[%clk 0:02:59.3]} 3... Qe7 {[%clk
0:02:58.1]} 4. Bf4 {[%clk 0:02:56.3]} 4... Qb4+ {[%clk 0:02:56.9]} 5. Bd2 {[%clk
0:02:56.2]} 5... Qxb2 {[%clk 0:02:57.2]} 6. Nc3 {[%clk 0:02:55.8]} 6... Bb4
{[%clk 0:02:57.7]} 7. Rb1 {[%clk 0:02:54.6]} 7... Qxc3 {[%clk 0:02:58.2]} 8.
Bxc3 {[%clk 0:02:54.2]} 8... Bxc3+ {[%clk 0:02:59.1]} 9. Nd2 {[%clk 0:02:54.1]}
9... Nxe5 {[%clk 0:02:59.5]} 10. e3 {[%clk 0:02:47.5]} 10... Nf6 {[%clk
0:03:00]} 11. Bd3 {[%clk 0:02:37]} 11... O-O {[%clk 0:03:00.2]} 12. O-O {[%clk
0:02:36.7]} 12... d5 {[%clk 0:03:01]} 13. h3 {[%clk 0:02:32.5]} 13... b6 {[%clk
0:02:59]} 14. Nf3 {[%clk 0:02:28.4]} 14... Nxf3+ {[%clk 0:02:59.4]} 15. Qxf3
{[%clk 0:02:27.9]} 15... Be5 {[%clk 0:02:57.9]} 16. c4 {[%clk 0:02:21]} 16...
Be6 {[%clk 0:02:58.6]} 17. Bf5 {[%clk 0:02:16.8]} 17... Bxf5 {[%clk 0:02:46.4]}
18. Qxf5 {[%clk 0:02:16.4]} 18... Rae8 {[%clk 0:02:47.3]} 19. cxd5 {[%clk
0:02:14.2]} 19... Nxd5 {[%clk 0:02:48.2]} 20. Rbd1 {[%clk 0:01:52.5]} 20... g6
{[%clk 0:02:42.7]} 21. Qd7 {[%clk 0:01:45.8]} 21... Nc3 {[%clk 0:02:39.6]} 22.
Rd2 {[%clk 0:01:35.7]} 22... Ne4 {[%clk 0:02:38.7]} 23. Rc2 {[%clk 0:01:31.8]}
23... Nc5 {[%clk 0:02:38.2]} 24. Rxc5 {[%clk 0:01:30.8]} 24... bxc5 {[%clk
0:02:39.1]} 25. Qa4 {[%clk 0:01:19.3]} 25... Bd6 {[%clk 0:02:24.4]} 26. Rb1
{[%clk 0:01:11.2]} 26... Ra8 {[%clk 0:02:24.4]} 27. Qa6 {[%clk 0:01:09.3]} 27...
Rfe8 {[%clk 0:01:22.7]} 28. g3 {[%clk 0:00:54.3]} 28... Re6 {[%clk 0:01:21.5]}
29. Qb7 {[%clk 0:00:48.8]} 29... Ree8 {[%clk 0:01:21.7]} 30. Qd5 {[%clk
0:00:39.5]} 30... a6 {[%clk 0:01:12.9]} 31. a4 {[%clk 0:00:37.7]} 31... Bf8
{[%clk 0:00:46.7]} 32. Rb7 {[%clk 0:00:32.9]} 32... Bd6 {[%clk 0:00:36.2]} 33.
h4 {[%clk 0:00:30.3]} 33... h5 {[%clk 0:00:36.1]} 34. a5 {[%clk 0:00:28.7]}
34... Kg7 {[%clk 0:00:33.5]} 35. Kg2 {[%clk 0:00:26.3]} 35... Re5 {[%clk
0:00:30]} 36. Qc6 {[%clk 0:00:20.3]} 36... Re6 {[%clk 0:00:25.6]} 37. Qd7 {[%clk
0:00:11.1]} 37... Re7 {[%clk 0:00:10.1]} 38. Qc6 {[%clk 0:00:10.8]} 38... Re6
{[%clk 0:00:10.6]} 39. Qf3 {[%clk 0:00:10.9]} 39... Rf6 {[%clk 0:00:10.2]} 40.
Qe2 {[%clk 0:00:10.7]} 40... Re6 {[%clk 0:00:06.1]} 41. Qb2+ {[%clk 0:00:10.6]}
41... Be5 {[%clk 0:00:04.9]} 42. Qb3 {[%clk 0:00:10.5]} 42... Rae8 {[%clk
0:00:03.3]} 43. Rb8 {[%clk 0:00:08.1]} 43... Rxb8 {[%clk 0:00:02.7]} 44. Qxb8
{[%clk 0:00:08.4]} 44... c4 {[%clk 0:00:03.6]} 45. Qb4 {[%clk 0:00:06.1]} 45...
c3 {[%clk 0:00:02]} 46. Qc4 {[%clk 0:00:05.2]} 46... Bf6 {[%clk 0:00:02.6]} 47.
e4 {[%clk 0:00:04.5]} 47... Rd6 {[%clk 0:00:01.8]} 48. f4 {[%clk 0:00:03.6]}
48... Bd4 {[%clk 0:00:01.7]} 49. e5 {[%clk 0:00:02.6]} 49... Rd8 {[%clk
0:00:01.8]} 50. f5 {[%clk 0:00:02.1]} 50... gxf5 {[%clk 0:00:01.9]} 51. Kf3
{[%clk 0:00:01.3]} 51... Bxe5 {[%clk 0:00:02.1]} 0-1

[Event "Early-Titled-Tuesday-Blitz-November-28-2023"]
[Site "Chess.com"]
[Date "2023.11.28"]
[Round "8"]
[White "belisarius64"]
[Black "whitemirrorninja"]
[Result "1-0"]
[WhiteElo "2695"]
[BlackElo "2505"]
[TimeControl "180+1"]
[EndTime "9:35:37 PST"]
[Termination "belisarius64 won by checkmate"]

1. e4 {[%clk 0:03:00.9]} 1... c5 {[%clk 0:02:55.3]} 2. Nf3 {[%clk 0:03:00.6]}
2... d6 {[%clk 0:02:53.9]} 3. Bc4 {[%clk 0:03:00.5]} 3... e6 {[%clk 0:02:53.5]}
4. O-O {[%clk 0:02:59.6]} 4... a6 {[%clk 0:02:54]} 5. Re1 {[%clk 0:02:56]} 5...
b5 {[%clk 0:02:53]} 6. Bf1 {[%clk 0:02:56]} 6... Bb7 {[%clk 0:02:53.5]} 7. a4
{[%clk 0:02:55.3]} 7... b4 {[%clk 0:02:47.7]} 8. d3 {[%clk 0:02:39.9]} 8... Nc6
{[%clk 0:02:45.3]} 9. c3 {[%clk 0:02:39]} 9... a5 {[%clk 0:02:40.8]} 10. d4
{[%clk 0:02:38.2]} 10... cxd4 {[%clk 0:02:39.5]} 11. cxd4 {[%clk 0:02:38.1]}
11... Nf6 {[%clk 0:02:37.9]} 12. d5 {[%clk 0:02:29.5]} 12... Ne5 {[%clk
0:02:27]} 13. Nxe5 {[%clk 0:02:21.6]} 13... dxe5 {[%clk 0:02:27.9]} 14. Bb5+
{[%clk 0:02:21.9]} 14... Ke7 {[%clk 0:02:20.1]} 15. Qf3 {[%clk 0:01:43.5]} 15...
exd5 {[%clk 0:02:07.2]} 16. exd5 {[%clk 0:01:43.6]} 16... Qxd5 {[%clk
0:02:07.9]} 17. Qg3 {[%clk 0:01:39.4]} 17... Ne4 {[%clk 0:02:05.7]} 18. Qh4+
{[%clk 0:01:06.9]} 18... g5 {[%clk 0:02:05.4]} 19. Qh3 {[%clk 0:00:53]} 19...
Rd8 {[%clk 0:01:33.9]} 20. Be3 {[%clk 0:00:50.8]} 20... h5 {[%clk 0:01:16.1]}
21. f3 {[%clk 0:00:39.1]} 21... Nd6 {[%clk 0:00:57.2]} 22. Bxg5+ {[%clk
0:00:33]} 22... f6 {[%clk 0:00:57.7]} 23. Bxf6+ {[%clk 0:00:30.4]} 23... Kxf6
{[%clk 0:00:52.9]} 24. Qh4+ {[%clk 0:00:30.9]} 24... Kf7 {[%clk 0:00:28.8]} 25.
Qxd8 {[%clk 0:00:30.1]} 25... Rg8 {[%clk 0:00:27.9]} 26. Qd7+ {[%clk 0:00:26.3]}
26... Be7 {[%clk 0:00:27.5]} 27. Bf1 {[%clk 0:00:17.7]} 27... Qxf3 {[%clk
0:00:23.5]} 28. Kh1 {[%clk 0:00:06.4]} 28... Rxg2 {[%clk 0:00:20.9]} 29. Qxb7
{[%clk 0:00:07.1]} 29... Rxh2+ {[%clk 0:00:13.4]} 30. Kxh2 {[%clk 0:00:07.3]}
30... Nxb7 {[%clk 0:00:12.8]} 31. Bg2 {[%clk 0:00:07]} 31... Qf2 {[%clk
0:00:10.2]} 32. Rf1 {[%clk 0:00:06.8]} 32... Qxf1 {[%clk 0:00:08.2]} 33. Bxf1
{[%clk 0:00:07.7]} 33... Nc5 {[%clk 0:00:08]} 34. Nd2 {[%clk 0:00:07.5]} 34...
Kf6 {[%clk 0:00:07.1]} 35. Rc1 {[%clk 0:00:06.5]} 35... Nxa4 {[%clk 0:00:04.6]}
36. Ne4+ {[%clk 0:00:06.2]} 36... Kf5 {[%clk 0:00:04.6]} 37. Re1 {[%clk
0:00:04.6]} 37... Nxb2 {[%clk 0:00:03.8]} 38. Ng3+ {[%clk 0:00:04.8]} 38... Ke6
{[%clk 0:00:04.4]} 39. Bh3+ {[%clk 0:00:04.6]} 39... Kf7 {[%clk 0:00:03.4]} 40.
Rf1+ {[%clk 0:00:04.4]} 40... Ke8 {[%clk 0:00:03.3]} 41. Nxh5 {[%clk 0:00:04.7]}
41... Bd6 {[%clk 0:00:03.5]} 42. Nf6+ {[%clk 0:00:04.4]} 42... Ke7 {[%clk
0:00:02.4]} 43. Ne4 {[%clk 0:00:05]} 43... Bc7 {[%clk 0:00:02]} 44. Rc1 {[%clk
0:00:04.6]} 44... Bb6 {[%clk 0:00:01.5]} 45. Rc6 {[%clk 0:00:05.3]} 45... Bd4
{[%clk 0:00:01.8]} 46. Re6+ {[%clk 0:00:05.9]} 46... Kd8 {[%clk 0:00:02]} 47.
Rd6+ {[%clk 0:00:06.1]} 47... Kc7 {[%clk 0:00:02.9]} 48. Rg6 {[%clk 0:00:05.8]}
48... a4 {[%clk 0:00:03.8]} 49. Nd6 {[%clk 0:00:05.3]} 49... a3 {[%clk
0:00:04.7]} 50. Nb5+ {[%clk 0:00:05.5]} 50... Kb7 {[%clk 0:00:04.8]} 51. Bg2+
{[%clk 0:00:06]} 51... Kc8 {[%clk 0:00:04.7]} 52. Bc6 {[%clk 0:00:05.3]} 52...
Nc4 {[%clk 0:00:03.5]} 53. Rg8# {[%clk 0:00:05.5]} 1-0

[Event "Early-Titled-Tuesday-Blitz-November-28-2023"]
[Site "Chess.com"]
[Date "2023.11.28"]
[Round "8"]
[White "Khromkin"]
[Black "jamengrand"]
[Result "0-1"]
[WhiteElo "2467"]
[BlackElo "2279"]
[TimeControl "180+1"]
[EndTime "9:35:39 PST"]
[Termination "jamengrand won on time"]

1. d4 {[%clk 0:02:59.6]} 1... Nf6 {[%clk 0:02:59.5]} 2. c4 {[%clk 0:02:58.4]}
2... c6 {[%clk 0:02:59.7]} 3. Nf3 {[%clk 0:02:58.7]} 3... b5 {[%clk 0:03:00]} 4.
Nbd2 {[%clk 0:02:49.5]} 4... g6 {[%clk 0:02:58.3]} 5. g3 {[%clk 0:02:44]} 5...
Bg7 {[%clk 0:02:57.5]} 6. Bg2 {[%clk 0:02:44.5]} 6... bxc4 {[%clk 0:02:57.2]} 7.
Nxc4 {[%clk 0:02:43.5]} 7... O-O {[%clk 0:02:57]} 8. O-O {[%clk 0:02:43]} 8...
Ba6 {[%clk 0:02:56.3]} 9. Qc2 {[%clk 0:02:40.2]} 9... d6 {[%clk 0:02:51.6]} 10.
Re1 {[%clk 0:02:35.9]} 10... Nbd7 {[%clk 0:02:50.5]} 11. h3 {[%clk 0:02:30.3]}
11... Rb8 {[%clk 0:02:48.5]} 12. b3 {[%clk 0:02:29.3]} 12... Nd5 {[%clk
0:02:45.9]} 13. Bd2 {[%clk 0:02:25.9]} 13... Nb4 {[%clk 0:02:40.1]} 14. Bxb4
{[%clk 0:02:20.9]} 14... Rxb4 {[%clk 0:02:39.5]} 15. Qd2 {[%clk 0:02:11.2]}
15... Rb8 {[%clk 0:02:35.1]} 16. Rac1 {[%clk 0:02:03.1]} 16... c5 {[%clk
0:02:27.8]} 17. e3 {[%clk 0:01:40.3]} 17... Qc7 {[%clk 0:02:15]} 18. Red1 {[%clk
0:01:34.8]} 18... Rfc8 {[%clk 0:02:12.5]} 19. h4 {[%clk 0:01:27.4]} 19... h6
{[%clk 0:02:09.6]} 20. h5 {[%clk 0:01:20.5]} 20... g5 {[%clk 0:02:09.6]} 21.
dxc5 {[%clk 0:01:16.5]} 21... Nxc5 {[%clk 0:02:07.8]} 22. Nd4 {[%clk 0:01:16.6]}
22... Qd7 {[%clk 0:01:43.8]} 23. Na5 {[%clk 0:01:09.4]} 23... d5 {[%clk
0:01:34.2]} 24. Ndc6 {[%clk 0:01:01.4]} 24... Rb5 {[%clk 0:00:44.7]} 25. a4
{[%clk 0:01:00.1]} 25... Rxa5 {[%clk 0:00:43.6]} 26. Nxa5 {[%clk 0:01:00.7]}
26... e6 {[%clk 0:00:34.2]} 27. b4 {[%clk 0:00:47.1]} 27... Nxa4 {[%clk
0:00:31.1]} 28. Rxc8+ {[%clk 0:00:46.7]} 28... Qxc8 {[%clk 0:00:29.1]} 29. e4
{[%clk 0:00:45]} 29... Bc3 {[%clk 0:00:25]} 30. Qa2 {[%clk 0:00:33.7]} 30... Nb2
{[%clk 0:00:22.9]} 31. Rb1 {[%clk 0:00:32.2]} 31... Nd3 {[%clk 0:00:09.6]} 32.
exd5 {[%clk 0:00:32.1]} 32... Nxf2 {[%clk 0:00:08.4]} 33. Kxf2 {[%clk
0:00:29.8]} 33... Bd4+ {[%clk 0:00:08.6]} 34. Ke1 {[%clk 0:00:27.8]} 34... exd5
{[%clk 0:00:08.7]} 35. Qb3 {[%clk 0:00:14.1]} 35... Qe6+ {[%clk 0:00:07.8]} 36.
Kd1 {[%clk 0:00:12.5]} 36... Qe2+ {[%clk 0:00:07.2]} 37. Kc1 {[%clk 0:00:12.6]}
37... Be3+ {[%clk 0:00:05.8]} 38. Qxe3 {[%clk 0:00:12.7]} 38... Qxe3+ {[%clk
0:00:06.3]} 39. Kb2 {[%clk 0:00:09.5]} 39... Qe2+ {[%clk 0:00:06.5]} 40. Ka3
{[%clk 0:00:07.7]} 40... Qxg2 {[%clk 0:00:07.4]} 41. Nc6 {[%clk 0:00:07.3]}
41... Qxg3+ {[%clk 0:00:06.8]} 42. Ka4 {[%clk 0:00:07.6]} 42... Qd3 {[%clk
0:00:06.2]} 43. Rc1 {[%clk 0:00:03.7]} 43... Bb5+ {[%clk 0:00:06.4]} 44. Ka5
{[%clk 0:00:02.8]} 44... Bxc6 {[%clk 0:00:06.2]} 45. Rxc6 {[%clk 0:00:02.8]}
45... Qa3+ {[%clk 0:00:06.5]} 46. Kb5 {[%clk 0:00:02.9]} 46... d4 {[%clk
0:00:07]} 47. Rxh6 {[%clk 0:00:01.4]} 47... d3 {[%clk 0:00:06.9]} 48. Rd6 {[%clk
0:00:01.8]} 48... Qc3 {[%clk 0:00:07]} 0-1

[Event "Early-Titled-Tuesday-Blitz-November-28-2023"]
[Site "Chess.com"]
[Date "2023.11.28"]
[Round "8"]
[White "SaqoChess_Twitch"]
[Black "Nikolakis2014"]
[Result "0-1"]
[WhiteElo "2634"]
[BlackElo "2792"]
[TimeControl "180+1"]
[EndTime "9:35:41 PST"]
[Termination "Nikolakis2014 won by checkmate"]

1. d4 {[%clk 0:03:00.9]} 1... Nf6 {[%clk 0:02:56.1]} 2. c4 {[%clk 0:03:01.5]}
2... g6 {[%clk 0:02:56.2]} 3. Nc3 {[%clk 0:03:02.1]} 3... Bg7 {[%clk 0:02:56.6]}
4. Nf3 {[%clk 0:03:01.1]} 4... d6 {[%clk 0:02:56.6]} 5. h3 {[%clk 0:03:00.7]}
5... O-O {[%clk 0:02:56.7]} 6. Bf4 {[%clk 0:03:00.5]} 6... Nc6 {[%clk
0:02:53.6]} 7. e3 {[%clk 0:02:59.7]} 7... Nd7 {[%clk 0:02:52.5]} 8. Bg3 {[%clk
0:02:55.1]} 8... e5 {[%clk 0:02:52]} 9. dxe5 {[%clk 0:02:54.9]} 9... Ncxe5
{[%clk 0:02:49.1]} 10. Nxe5 {[%clk 0:02:53.8]} 10... Nxe5 {[%clk 0:02:49.1]} 11.
Be2 {[%clk 0:02:53.8]} 11... Be6 {[%clk 0:02:48]} 12. Qa4 {[%clk 0:02:41.4]}
12... Qe8 {[%clk 0:02:20.5]} 13. Qxe8 {[%clk 0:02:36.4]} 13... Rfxe8 {[%clk
0:02:20.3]} 14. Nd5 {[%clk 0:02:15.9]} 14... Rac8 {[%clk 0:02:18.3]} 15. Rc1
{[%clk 0:02:15.4]} 15... a5 {[%clk 0:01:37.4]} 16. Nf4 {[%clk 0:02:09.4]} 16...
Bf5 {[%clk 0:01:34.5]} 17. Kd2 {[%clk 0:02:02.5]} 17... Nd7 {[%clk 0:01:32.8]}
18. b3 {[%clk 0:02:00.2]} 18... Nc5 {[%clk 0:01:32.7]} 19. f3 {[%clk 0:01:56.6]}
19... h5 {[%clk 0:01:30.7]} 20. Nd3 {[%clk 0:01:47.4]} 20... Bh6 {[%clk
0:00:56.9]} 21. Bf2 {[%clk 0:01:46.1]} 21... Bxd3 {[%clk 0:00:52]} 22. Bxd3
{[%clk 0:01:45.6]} 22... Re7 {[%clk 0:00:51.8]} 23. Bb1 {[%clk 0:01:31.2]} 23...
Rd8 {[%clk 0:00:47.4]} 24. Ke2 {[%clk 0:01:11.7]} 24... Rde8 {[%clk 0:00:44.3]}
25. Rc3 {[%clk 0:01:11.7]} 25... Ne6 {[%clk 0:00:42.2]} 26. Kd1 {[%clk
0:01:01.4]} 26... Bg7 {[%clk 0:00:39.7]} 27. Rc2 {[%clk 0:00:55.7]} 27... Nc5
{[%clk 0:00:38.7]} 28. Re2 {[%clk 0:00:54.5]} 28... Rd7 {[%clk 0:00:30]} 29. e4
{[%clk 0:00:53.1]} 29... Ne6 {[%clk 0:00:28.6]} 30. Be3 {[%clk 0:00:51.8]} 30...
h4 {[%clk 0:00:28.5]} 31. Rg1 {[%clk 0:00:48.8]} 31... Be5 {[%clk 0:00:28.4]}
32. Bf2 {[%clk 0:00:45.7]} 32... Bg3 {[%clk 0:00:27.8]} 33. Bxg3 {[%clk
0:00:44.4]} 33... hxg3 {[%clk 0:00:27.6]} 34. Kd2 {[%clk 0:00:38.9]} 34... Nf4
{[%clk 0:00:27.7]} 35. Ree1 {[%clk 0:00:38.8]} 35... g5 {[%clk 0:00:28]} 36. Rd1
{[%clk 0:00:35]} 36... f6 {[%clk 0:00:27.2]} 37. a3 {[%clk 0:00:19.6]} 37... Kg7
{[%clk 0:00:27.1]} 38. Bc2 {[%clk 0:00:18.6]} 38... c6 {[%clk 0:00:26.5]} 39.
Rde1 {[%clk 0:00:13.8]} 39... Red8 {[%clk 0:00:25.5]} 40. Kc3 {[%clk 0:00:13.3]}
40... d5 {[%clk 0:00:25.4]} 41. exd5 {[%clk 0:00:12.7]} 41... cxd5 {[%clk
0:00:25.8]} 42. Bf5 {[%clk 0:00:12.5]} 42... d4+ {[%clk 0:00:24.3]} 43. Kd2
{[%clk 0:00:12.5]} 43... Rf7 {[%clk 0:00:24.2]} 44. Re4 {[%clk 0:00:12.2]} 44...
a4 {[%clk 0:00:22.3]} 45. b4 {[%clk 0:00:12.2]} 45... Rc7 {[%clk 0:00:22.6]} 46.
c5 {[%clk 0:00:12.5]} 46... b6 {[%clk 0:00:22.5]} 47. cxb6 {[%clk 0:00:11.5]}
47... Rb7 {[%clk 0:00:22.8]} 48. h4 {[%clk 0:00:11.6]} 48... Rd6 {[%clk
0:00:20.7]} 49. Rge1 {[%clk 0:00:11.1]} 49... Rdxb6 {[%clk 0:00:16.1]} 50. hxg5
{[%clk 0:00:09.8]} 50... fxg5 {[%clk 0:00:15.9]} 51. Bh3 {[%clk 0:00:09.4]}
51... Kf6 {[%clk 0:00:14.4]} 52. Rxd4 {[%clk 0:00:07.9]} 52... Rc7 {[%clk
0:00:12.9]} 53. Re8 {[%clk 0:00:07.9]} 53... Rbc6 {[%clk 0:00:13]} 54. Rf8+
{[%clk 0:00:04.5]} 54... Kg7 {[%clk 0:00:13.2]} 55. Rfd8 {[%clk 0:00:04.7]}
55... Rc2+ {[%clk 0:00:12.9]} 56. Kd1 {[%clk 0:00:04.8]} 56... Rc1+ {[%clk
0:00:12.8]} 57. Kd2 {[%clk 0:00:05.4]} 57... R7c2+ {[%clk 0:00:13.1]} 58. Ke3
{[%clk 0:00:05.9]} 58... Re2# {[%clk 0:00:13.8]} 0-1

[Event "Early-Titled-Tuesday-Blitz-November-28-2023"]
[Site "Chess.com"]
[Date "2023.11.28"]
[Round "8"]
[White "Sulthankan"]
[Black "DanylaBagrov"]
[Result "0-1"]
[WhiteElo "2369"]
[BlackElo "2593"]
[TimeControl "180+1"]
[EndTime "9:35:41 PST"]
[Termination "DanylaBagrov won by resignation"]

1. d4 {[%clk 0:03:00.9]} 1... d6 {[%clk 0:02:51.8]} 2. e4 {[%clk 0:03:00.6]}
2... Nf6 {[%clk 0:02:47]} 3. Nc3 {[%clk 0:03:00.6]} 3... e5 {[%clk 0:02:47.3]}
4. Nf3 {[%clk 0:03:00]} 4... Nbd7 {[%clk 0:02:45]} 5. Bc4 {[%clk 0:02:58.6]}
5... Be7 {[%clk 0:02:44.7]} 6. O-O {[%clk 0:02:56.7]} 6... O-O {[%clk
0:02:45.1]} 7. h3 {[%clk 0:02:55.4]} 7... c6 {[%clk 0:02:44.8]} 8. a4 {[%clk
0:02:55.6]} 8... a5 {[%clk 0:02:44.3]} 9. Be3 {[%clk 0:02:53.2]} 9... exd4
{[%clk 0:02:23.1]} 10. Bxd4 {[%clk 0:02:54.1]} 10... Qc7 {[%clk 0:02:13.3]} 11.
Re1 {[%clk 0:02:49.3]} 11... Ne5 {[%clk 0:02:07]} 12. Bb3 {[%clk 0:02:43.9]}
12... Nfd7 {[%clk 0:01:35.1]} 13. Qe2 {[%clk 0:01:44]} 13... Nc5 {[%clk
0:01:23.1]} 14. Ba2 {[%clk 0:01:43.5]} 14... Be6 {[%clk 0:01:13.3]} 15. Bxe6
{[%clk 0:01:25.6]} 15... Nxe6 {[%clk 0:01:05.6]} 16. Be3 {[%clk 0:01:23]} 16...
Rad8 {[%clk 0:00:40.5]} 17. Rad1 {[%clk 0:01:21.8]} 17... Bf6 {[%clk 0:00:38]}
18. Nd4 {[%clk 0:01:16.3]} 18... g6 {[%clk 0:00:32.5]} 19. f4 {[%clk 0:01:15.4]}
19... Nd7 {[%clk 0:00:26.6]} 20. Nxe6 {[%clk 0:00:50.4]} 20... fxe6 {[%clk
0:00:27.5]} 21. Qg4 {[%clk 0:00:50.1]} 21... Rde8 {[%clk 0:00:23.2]} 22. f5
{[%clk 0:00:40.6]} 22... Bxc3 {[%clk 0:00:17.9]} 23. bxc3 {[%clk 0:00:38.4]}
23... Ne5 {[%clk 0:00:17.3]} 24. Qg3 {[%clk 0:00:35.3]} 24... exf5 {[%clk
0:00:17.9]} 25. Bh6 {[%clk 0:00:29.8]} 25... Rf7 {[%clk 0:00:16]} 26. exf5
{[%clk 0:00:25]} 26... Rxf5 {[%clk 0:00:16.9]} 27. c4 {[%clk 0:00:21.6]} 27...
Qb6+ {[%clk 0:00:14.7]} 28. Kh1 {[%clk 0:00:20.1]} 28... Qc5 {[%clk 0:00:11.5]}
29. Be3 {[%clk 0:00:17.7]} 29... Qxc4 {[%clk 0:00:11.2]} 30. Rxd6 {[%clk
0:00:17.8]} 30... Qxc2 {[%clk 0:00:06.4]} 31. Bf4 {[%clk 0:00:15.9]} 31... Qb2
{[%clk 0:00:04]} 32. Rd2 {[%clk 0:00:12.5]} 32... Qb4 {[%clk 0:00:03.8]} 33. Bh6
{[%clk 0:00:09]} 33... Qe7 {[%clk 0:00:02.6]} 34. Rde2 {[%clk 0:00:09.2]} 34...
Qf7 {[%clk 0:00:03]} 35. Bf4 {[%clk 0:00:08.7]} 35... Rxf4 {[%clk 0:00:03.2]}
36. Rxe5 {[%clk 0:00:09.4]} 36... Rxe5 {[%clk 0:00:03.7]} 37. Rxe5 {[%clk
0:00:10.3]} 37... Rf5 {[%clk 0:00:04.5]} 38. Re1 {[%clk 0:00:07.9]} 38... Rf1+
{[%clk 0:00:05.1]} 39. Kh2 {[%clk 0:00:06.8]} 39... Rxe1 {[%clk 0:00:05.3]} 40.
Qxe1 {[%clk 0:00:07.7]} 40... Qc7+ {[%clk 0:00:05.1]} 41. Kg1 {[%clk 0:00:08.6]}
41... Qd7 {[%clk 0:00:04.3]} 42. Qe5 {[%clk 0:00:08.5]} 42... Qd5 {[%clk
0:00:04.4]} 43. Qe8+ {[%clk 0:00:08.6]} 43... Kg7 {[%clk 0:00:04.8]} 44. Qe7+
{[%clk 0:00:09.5]} 44... Kh6 {[%clk 0:00:05]} 45. Qh4+ {[%clk 0:00:09.7]} 45...
Qh5 {[%clk 0:00:05.7]} 46. Qf4+ {[%clk 0:00:09.9]} 46... Kg7 {[%clk 0:00:05.6]}
47. Qc7+ {[%clk 0:00:09.7]} 47... Kf6 {[%clk 0:00:05.7]} 48. Qxb7 {[%clk
0:00:09.3]} 48... Qc5+ {[%clk 0:00:06.3]} 49. Kh2 {[%clk 0:00:09.4]} 49... h5
{[%clk 0:00:07]} 50. Qb8 {[%clk 0:00:06.8]} 50... Qe5+ {[%clk 0:00:07.5]} 51.
Qxe5+ {[%clk 0:00:05.4]} 51... Kxe5 {[%clk 0:00:08.4]} 52. g4 {[%clk 0:00:05.1]}
52... c5 {[%clk 0:00:08.2]} 53. gxh5 {[%clk 0:00:04.9]} 53... gxh5 {[%clk
0:00:09]} 54. Kg3 {[%clk 0:00:05.6]} 54... c4 {[%clk 0:00:09.2]} 55. Kf3 {[%clk
0:00:06.3]} 55... Kd4 {[%clk 0:00:09.7]} 56. Ke2 {[%clk 0:00:06.5]} 56... Kc3
{[%clk 0:00:10.3]} 57. Ke3 {[%clk 0:00:07.1]} 57... Kb2 {[%clk 0:00:10.5]} 0-1